Cogmind - Beta 15 X1 @@@ ROGUE MODE // 2024.11.12 @ 01:05:32 Player: Some Pennies Result: Destroyed by AI-VAQ(R) with Subdweller Shrapnel Launcher Performance ------------- Evolutions (0) 0 Regions Visited (2) 400 Robots Destroyed (66) 330 Value Destroyed (1354) 1354 Prototype IDs (2) 40 Alien Tech Used (0) 0 Bonus (0) 0 TOTAL SCORE: 2124 Bonus ------- None Cogmind --------- Core Integrity 0/250 Matter 300/300 Energy 100/100 System Corruption 0% Temperature Cool (0) Movement Treading (360) Ox2 Location -10/Subcaves Parts ------- > --- POWER (1) -------- (None) > --- PROPULSION (2) --- Spiked Treads Spiked Treads > --- UTILITY (2) ------ Huge Storage Unit Hardened Light Armor Plating > --- WEAPON (2) ------- Subdweller Beam Cannon Subdweller Beam Cannon > --- INVENTORY (25) --- Meta Core Light Treads Heat Sink Improved Heat Sink High-capacity Storage Unit Sensor Array Improved Terrain Scanner Seismic Detector Transport Network Coupler ECM Suite Hardened Light Armor Plating Hardened Light Armor Plating Hardened Light Armor Plating Hacking Suite Light EM Pulse Cannon Light EM Pulse Cannon Assault Rifle Assault Rifle Battle Rifle Subdweller Machine Gun Grenade Launcher Grenade Launcher Dirty Datajack (20) Multitool Makeshift Hammer Peak State ------------ > --- POWER ------------ Subdweller Power Source > --- PROPULSION ------- Light Treads Spiked Treads > --- UTILITY ---------- Huge Storage Unit Hardened Light Armor Plating > --- WEAPON ----------- Subdweller Beam Cannon Subdweller Machine Gun > --- INVENTORY -------- Meta Core Light Treads Heat Sink Improved Heat Sink High-capacity Storage Unit Sensor Array Improved Terrain Scanner Seismic Detector Transport Network Coupler ECM Suite Hardened Light Armor Plating Hardened Light Armor Plating Hardened Light Armor Plating Hacking Suite Light EM Pulse Cannon Light EM Pulse Cannon Assault Rifle Assault Rifle Battle Rifle Grenade Launcher Grenade Launcher Dirty Datajack Mining Laser Multitool [Rating: 17] Favorites ----------- Power Ion Engine Engine Ion Engine Propulsion Light Treads Treads Light Treads Utility Huge Storage Unit Device Seismic Detector Storage Huge Storage Unit Protection Light Armor Plating Weapon Assault Rifle Energy Gun Particle Gun Energy Cannon Subdweller Beam Cannon Ballistic Gun Assault Rifle Launcher Grenade Launcher Special Weapon Mining Laser Build | -11 -10 -10 ------- Run | Yrd Mat Sub Slots Evolved . | . . . Power . | . . . Propulsion . | . . . Utility . | . . . Weapon . | . . . Parts Attached 34 | 7 14 13 Power 3 | 1 1 1 Engine 3 | 1 1 1 Core . | . . . Reactor . | . . . Propulsion 6 | 2 2 2 Treads 6 | 2 2 2 Leg . | . . . Wheel . | . . . Hover . | . . . Flight . | . . . Utility 9 | 2 4 3 Device 1 | 1 . . Storage 2 | 1 1 . Processor . | . . . Hackware . | . . . Protection 6 | . 3 3 Artifact . | . . . Weapon 16 | 2 7 7 Energy Gun 3 | . 2 1 Energy Cannon 6 | . 2 4 Ballistic Gun 5 | 2 1 2 Ballistic Cannon . | . . . Launcher 1 | . 1 . Special Weapon 1 | . 1 . Impact Weapon . | . . . Slashing Weapon . | . . . Piercing Weapon . | . . . Special Melee Weapon . | . . . Unidentified Prototypes . | . . . Parts Lost 4 | . 1 3 Power 2 | . 1 1 Propulsion . | . . . Utility 2 | . . 2 Weapon . | . . . Highest Loss Streak 1 | . 1 1 To Critical Strikes . | . . . Average Backups 23 | 4 23 24 Power . | . . . Propulsion 2 | 1 2 1 Utility 12 | . 13 13 Weapon 7 | 1 7 7 Tool/Special . | . . . Unused Backups 22 | 1 4 17 Power . | . . . Propulsion 2 | . 1 1 Utility 14 | 1 2 11 Weapon 3 | . 1 2 Tool/Special 3 | . . 3 Average Slot Usage (%) 96 | . 99 93 Engine 11 | . 13 8 Treads 27 | . 27 28 Device 1 | . 2 . Storage 14 | . 14 14 Protection 12 | . 11 14 Energy Gun 6 | . 4 7 Energy Cannon 7 | . 1 13 Ballistic Gun 14 | . 21 7 Peak Build Rating 17 | 8 12 17 Average Rating 11 | 6 10 14 On Entrance 6 | . 7 11 Naked Turns . | . . . Heaviest Build 106 | 12 93 106 Greatest Support 40 | 40 40 40 Greatest Overweight (x) 2 | . 2 2 Average Overweight (x) 1 | . 1 2 Largest Inventory Capacity 25 | 8 25 25 Average Capacity 23 | 7 24 25 Most Carried 25 | 8 25 25 Average Carried 23 | 5 23 24 Final Capacity 25 | 8 25 25 Final Carried 25 | 7 25 25 Class Distribution -------------------- 100% | Mutant Dominant Class ---------------- Mutant | -10/Materials Mutant | -10/Subcaves Resources | -11 -10 -10 ----------- Run | Yrd Mat Sub Matter Collected 1568 | 447 603 518 Remotely . | . . . Salvage Created 1859 | 294 904 661 Parts 131 | 31 60 40 Haulers Intercepted 2 | . 2 . Recyclers Shooed 1 | . 1 . Parts Field Recycled . | . . . Retrieved Matter . | . . . Parts Self-Destructed 12 | . . 12 Prevented . | . . . Kills | -11 -10 -10 ------- Run | Yrd Mat Sub Combat Hostiles Destroyed 37 | . 19 18 Guns 22 | . 13 9 Cannons 5 | . . 5 AOE 8 | . 6 2 Classes Destroyed 11 | 3 6 2 Worker 4 | 2 2 . Builder 5 | . 5 . Tunneler 9 | 8 1 . Hauler 2 | . 2 . Recycler 3 | 1 2 . Operator 1 | . 1 . Turret 2 | . . 2 Watcher 3 | . 3 . Swarmer 12 | . 9 3 Grunt 10 | . 10 . Subdweller 15 | . . 15 Best Kill Streak 6 | 3 6 3 Combat Bots Only 5 | . 5 3 Max Kills in Single Turn 2 | 1 2 2 Gunslinging . | . . . Exploded 2 | . 2 2 Melee . | . . . Uniques/NPCs Destroyed . | . . . Combat | -11 -10 -10 -------- Run | Yrd Mat Sub Hostile Shots Fired 160 | . 65 95 Missed 42 | . 12 30 Damage Taken 1769 | . 559 1210 Core 253 | . 85 168 Absorbed by Shields . | . . . Regen/Repaired (Parts) 318 | . 318 . Core Remaining (%) 100 | 100 . . Volleys Fired 202 | 45 92 65 Largest 2 | 2 2 2 Hottest 160 | 40 130 160 Shots Fired 381 | 89 169 123 Gun 326 | 89 148 89 Cannon 33 | . 6 27 Launcher 13 | . 8 5 Special 9 | . 7 2 Kinetic 247 | 89 107 51 Thermal 111 | . 48 63 Explosive 13 | . 8 5 Electromagnetic 10 | . 6 4 Robot Hit Streak 24 | 9 10 24 Robot Miss Streak 5 | 5 5 3 Penetration Max . | . . . Secondary Targets 2 | . 1 1 Max Gunslinging Chain 1 | . 1 1 Shots Hit Robots 216 | 49 88 79 Core Hits 99 | 17 48 34 Critical Kills 2 | . 1 1 Critical Parts Destroyed . | . . . Critical Strikes 6 | . 3 3 Burn 4 | . 2 2 Meltdown 1 | . . 1 Destroy 1 | . 1 . Melee Attacks . | . . . Impact . | . . . Slashing . | . . . Piercing . | . . . Sneak Attacks . | . . . Combat Hostiles . | . . . Follow-up Attacks . | . . . Damage Inflicted 3728 | 512 1577 1639 Guns 2622 | 512 1123 987 Cannons 450 | . 98 352 Explosions 628 | . 328 300 Melee . | . . . Ramming 28 | . 28 . Kinetic 1691 | 512 695 484 Thermal 1204 | . 428 776 Explosive 628 | . 328 300 Electromagnetic 177 | . 98 79 Impact . | . . . Slashing . | . . . Piercing . | . . . Highest Corruption . | . . . Average Corruption . | . . . Corruption Purged . | . . . Corruption Blocked . | . . . Overload Shots . | . . . Overflow Damage 26 | . 26 . Projectiles 26 | . 26 . Explosions . | . . . Melee . | . . . Knockbacks . | . . . Impact . | . . . Kinetic . | . . . Secondary . | . . . Self-Inflicted Damage . | . . . Shots . | . . . Rammed 3 | . 3 . Targets Rammed 3 | . 3 . Kicked . | . . . Crushed . | . . . Highest Temperature 198 | . 198 183 Average Temperature 53 | . 55 48 Received Heat Transfer 372 | . 225 147 Siege Activations . | . . . Martial Activations . | . . . Shielding Activations . | . . . Robots Disrupted . | . . . Combat Hostiles . | . . . Robots Corrupted . | . . . Combat Hostiles . | . . . Parts Fried 1 | . 1 . Impact Corruptions . | . . . Robots Melted 2 | . . 2 Combat Hostiles 2 | . . 2 Parts Melted 10 | . 1 9 Heat Transferred 2533 | . 1147 1386 Parts Sabotaged . | . . . Parts Stolen . | . . . Parts Stripped . | . . . Power Chain Reactions . | . . . Alert | -11 -10 -10 ------- Run | Yrd Mat Sub Maximum Alert Level 1 | . 1 . Low Security (%) 49 | 100 43 . Level 1 50 | . 56 . Level 2 . | . . . Level 3 . | . . . Level 4 . | . . . Level 5 . | . . . High Security . | . . . Max Security . | . . . Peak Influence 278 | 15 278 . Initial . | . . . Average 159 | 1 178 . Influence Increases 1019 | 55 834 130 Destroy 0b10 Robot/C 480 | . 380 100 Destroy 0b10 Robot/NC 135 | 55 80 . Destroy Leader 90 | . 90 . Successful Hack 13 | . 13 . Disable Machine 45 | . 45 . Destroy Structure 46 | . 46 . Lose Combat Pursuer 210 | . 180 30 Influence Decreases 897 | 55 581 261 Time Decay 877 | 55 571 251 Lost Part 20 | . 10 10 Squads Dispatched 3 | . 3 . Investigation 2 | . 2 . Extermination . | . . . Reinforcement 1 | . 1 . Assault . | . . . Garrison . | . . . Intercept . | . . . Searches Triggered . | . . . Construction Impeded . | . . . Haulers Reinforced . | . . . Active Scanning Responses . | . . . Cargo Convoy Interrupts . | . . . Stealth | -11 -10 -10 --------- Run | Yrd Mat Sub Distress Signals 6 | . 6 . Communications Jammed . | . . . Distress Signals . | . . . Times Spotted 59 | . 36 23 Peak Tracking Total 7 | . 7 5 Tactical Retreats 7 | . 6 1 Traps | -11 -10 -10 ------- Run | Yrd Mat Sub Traps Triggered 2 | . 2 . Indirectly . | . . . Trap Hack Attempts . | . . . Triggered . | . . . Disarmed . | . . . Reprogrammed . | . . . Reused . | . . . Traps Extracted . | . . . Installed . | . . . Triggered . | . . . Machines | -11 -10 -10 ---------- Run | Yrd Mat Sub Machines Disabled 3 | . 3 . Max in Single Turn 2 | . 2 . Machines Repaired . | . . . Machines Dismantled . | . . . Machines Sabotaged . | . . . Overloaded Fab Kills . | . . . Hacking | -11 -10 -10 --------- Run | Yrd Mat Sub Machines Accessed 8 | . 7 1 Terminals 6 | . 6 . Fabricators . | . . . Repair Stations 1 | . 1 . Recycling Units . | . . . Scanalyzers . | . . . Garrison Access . | . . . Total Hacks 30 | . 25 5 Successful 25 | . 20 5 Failed 5 | . 5 . Catastrophic . | . . . Database Lockouts . | . . . Manual 13 | . 13 . Terminals 15 | . 15 . Fabricators . | . . . Repair Stations 10 | . 10 . Recycling Units . | . . . Scanalyzers . | . . . Garrison Access . | . . . Terminal Hacks 8 | . 3 5 Record 5 | . . 5 Robot Analysis 1 | . 1 . Prototype ID Bank 1 | . 1 . Terminal Index 1 | . 1 . Fabricator Hacks . | . . . Repair Station Hacks 10 | . 10 . Scan Component 5 | . 5 . Repair 5 | . 5 . Recycling Unit Hacks . | . . . Scanalyzer . | . . . Garrison Access Hacks . | . . . Unauthorized Hacks 7 | . 7 . Terminals 7 | . 7 . Botnet 1 | . 1 . Operators 1 | . 1 . Skim 5 | . 5 . Fabricators . | . . . Repair Stations . | . . . Recycling Units . | . . . Scanalyzers . | . . . Garrison Access . | . . . Data Cores Recovered . | . . . Used . | . . . Hacking Detections 7 | . 7 . Full Trace Events . | . . . Feedback Events . | . . . Feedback Blocked . | . . . Robot Schematics Acquired . | . . . Robots Built . | . . . Authchips . | . . . Time . | . . . Total Robot Build Rating . | . . . Part Schematics Acquired . | . . . Parts Built . | . . . Authchips . | . . . Time . | . . . Total Part Build Rating . | . . . Parts Repaired 5 | . 5 . Time 130 | . 130 . Parts Recycled . | . . . Recycled Matter . | . . . Retrieved Matter . | . . . Retrieved Components . | . . . Parts Scanalyzed . | . . . Part Schematics Acquired . | . . . Parts Damaged . | . . . Bothacking | -11 -10 -10 ------------ Run | Yrd Mat Sub Used RIF Installer . | . . . Robots Hacked . | . . . Non-combat . | . . . Combat . | . . . Robot Hacks Applied . | . . . Relay Couplers Released . | . . . Fabnet Peak Effective % . | . . . Robots Rewired . | . . . Allies Hacked . | . . . Hacks Repelled . | . . . Allies | -11 -10 -10 -------- Run | Yrd Mat Sub Total Allies . | . . . Largest Group . | . . . Highest-Rated Group . | . . . Highest-Rated Ally . | . . . Total Orders . | . . . Ally Attacks . | . . . Total Damage . | . . . Kills . | . . . Allies Corrupted . | . . . Allies Melted . | . . . Intel | -11 -10 -10 ------- Run | Yrd Mat Sub Active Infowar (turns) 793 | 283 510 . Seismic 793 | 283 510 . Robot Analysis Total 1 | . 1 . Derelict Logs Recovered 1 | . . 1 Drone Launches . | . . . Drone Recoveries . | . . . Exploration | -11 -10 -10 ------------- Run | Yrd Mat Sub Turns Passed 7571 | 432 3633 3506 Spaces Moved 2006 | 190 867 949 Core 17 | 17 . . Treads 1989 | 173 867 949 Legs . | . . . Wheels . | . . . Hover . | . . . Flight . | . . . Fastest Speed 50 | 50 160 320 Average Speed 310 | 150 313 340 Slowest Speed 360 | 160 320 360 Overloaded Moves . | . . . Propulsion Burnouts . | . . . Robots Hopped . | . . . Cave-ins Triggered . | . . . Exploration Rate (%) 60 | 9 99 74 Regions Visited 2 Branch Regions 1 Pre-discovered Areas 1 | . . 1 Known Exits Taken . | . . . Unknown Exits Taken 2 | 1 1 . Scrap Searched 11 | . . 11 Spaces Dug 5 | . 5 . Terrain Destroyed 65 | . 38 27 Melee . | . . . Projectile 10 | . 7 3 AOE 55 | . 31 24 Terrain Rammed . | . . . Walls Destroyed . | . . . Machines Disabled . | . . . Actions | -11 -10 -10 --------- Run | Yrd Mat Sub Total 2944 | 257 1590 1097 Wait 594 | . 556 38 Move 2004 | 189 866 949 Hop . | . . . Pick Up 53 | 15 31 7 Fast Attach 6 | . 3 3 Attach 12 | 7 3 2 Detach 1 | . . 1 Swap 45 | . 25 20 Drop 24 | 1 11 12 Fire 202 | 45 92 65 Melee . | . . . Ram . | . . . Kick . | . . . Crush 3 | . 3 . Escape Stasis . | . . . Rewire . | . . . Trap . | . . . Miscellaneous . | . . . Route ------- -11/Scrapyard -10/Materials (discovered 6 exits: *Mat x3 / [*Min x2] / *Sub) -10/Subcaves (discovered 3 exits: *Mat x2 / [*Rec]) History --------- Turn | Location | Event 23 | -11/Scrapyard | Discovered new exit (range 14) 433 | -11/Scrapyard | Entered Materials 448 | -10/Materials | Build established: Mutant 1231 | -10/Materials | Discovered new exit (range 15) 2161 | -10/Materials | Discovered new exit (range 7) 2716 | -10/Materials | Discovered new exit (range 16) 3010 | -10/Materials | Discovered new exit (range 3) 3352 | -10/Materials | Discovered new exit (range 15) 3417 | -10/Materials | Learned Storage non-interactive machine intel 3494 | -10/Materials | Learned 2 Mines zone layouts 3559 | -10/Materials | Identified exit to Materials 3769 | -10/Materials | Loaded intel: 4 trap records 3898 | -10/Materials | Repaired Lgt. Treads 3925 | -10/Materials | Repaired Lgt. Treads 3953 | -10/Materials | Repaired Assault Rifle 3980 | -10/Materials | Repaired Lgt. Treads 4007 | -10/Materials | Repaired Lgt. Treads 4066 | -10/Materials | Entered Subcaves 4067 | -10/Subcaves | Identified exit to Materials 4584 | -10/Subcaves | Core integrity fell below 50% 4910 | -10/Subcaves | A Subdweller sparked back to life 4910 | -10/Subcaves | A Subdweller sparked back to life 4959 | -10/Subcaves | Found Prototype Power Core 5027 | -10/Subcaves | Learned location of Zion (-6) 5147 | -10/Subcaves | A swath of the cavern ceiling suddenly collapsed 5244 | -10/Subcaves | Discovered new exit (range 14) 5530 | -10/Subcaves | Shifting Twisted Machinery released Sub. Power Source 5542 | -10/Subcaves | Core integrity fell below 20% 5614 | -10/Subcaves | Shifting Twisted Machinery released Sub. Optics 7136 | -10/Subcaves | A swath of the cavern ceiling suddenly collapsed 7323 | -10/Subcaves | Visited Clippyterm 7334 | -10/Subcaves | Learned Factory fabricator intel 7334 | -10/Subcaves | Learned Factory garrison access intel 7572 | -10/Subcaves | Destroyed by AI-VAQ(R) with Subdweller Shrapnel Launcher Last Messages --------------- still manages to suggest unhelpful sample queries and responses. --DD-NU8 >>Record "Authchips" It looks like you're interested in fabrication without breaking the rules, would you like help? Data stored: Factory fabricator intel. >>Record "Tag" It looks like you don't want to be "it," would you like help? Data stored: Factory garrison access intel. >>Record "01-MTF" It looks like you're after the notorious thief from 0b1. I don't know where they are, but my data indicates that someone they're looking for is frequently seen in Scraptown. >>Record "LRC-V1" It looks like you're REDACTED, I can suggest REDACTED and REDACTED. Also definitely avoid REDACTED. Map ----- +----------------------------------------------------+ | ?????????????????????????????????????????#######? | | ?????????????????????????????????????????#"""""#? | | ?????????????????????????????????????????#""X""#? | | ?????????????????????????????????????????#" "#? | | ?????????????????????????????????????????### ###? | | ??????????????????????????????????????????## ###? | | ??????????????????????###?#######????????## ## | | ?????????????????????## ## #??????### | | ?????????????????????# #???????# | | ?????????????????????## ##???##### | | ??????????????????????## ##??# ### ## | | ??????????????????????## #??# #### ## | | ??????????????????????# ### ##??# #### ## | | ??????????????????????# #?# ##???# # # ## | | ??????????????????????## #?# ##???# ##? | | ???????????????????????# ##?# ##?## ##?? | | ???????????????????????##???# ### # # #??? | | ????????????????????????????## ## ######??? | | ????????????????????????????## ## ##??????? | | ?????????????????????######## ###????? | | ?????????????????????# ##???? | | ?????????????????????# #???? | | ????????????????????## #??? | | ????????????????????# #### | | ????????????????????# #??? | | ????????????????????## @##### #??? # | | ?????????????????????# #???## #??? ### ## | | ????????????????????# #????## ##??? #??###? | | ????????????????????# ?????## #???? ##?### | | ????????????????????# ??????# #???? ?# | | ????????????????????## ??????# #????# ?# | | ????????????????????? ??????# ?????# ?## | | ????????????????????## ?????### ????# ?## | | ????????????????????? ## ????????# ??## ## | | ?????????????????????# R??#????? ??###??# ## | | ?????????????????????#R ???????? ## ???# ## | | ?????????????????????"" ???????? ?## | | ?????????????????????"""???????? ## | | ??????????????????????""???????? | | ???????????????????????????????????# | | ???????????????????????????????????### | | ?????????????????????? ## ????????###### | | ?????????????????????? ???????# ## | | ??????????????????????? ??????# | | ???????????????????????? ""??????# | | ?????????????????????????""""#????## ## | | ??????????????????????????# ????# #### | | ??????????????????????????# #???# #??## | | ?????????????????????????## ######## #???? | | ?????????????????????????# ###### # #???? | +----------------------------------------------------+ Best States ------------- Heat Dissipation 25 Energy Generation 10 Energy Capacity 250 Matter Stores 300 Matter Capacity 300 Sight Range 16 Terrain Scan Density 10 Armor Coverage 150 Evasion (%) 50 Recoil Reduction 2 Item Schematics ----------------- None Robot Schematics ------------------ None Fabricated ------------ Nothing Repaired ---------- Lgt. Treads | 25% | -10/Materials Lgt. Treads | 54% | -10/Materials Assault Rifle | 24% | -10/Materials Lgt. Treads | 72% | -10/Materials Lgt. Treads | 75% | -10/Materials Alien Tech Used ----------------- None Achievements -------------- None Challenges ------------ None Game ------ Seed MyomerZioniteDesublimator Manual? 0 Play Time 00:26:05 Cumulative 448.8 hours Start 2024.11.12 @ 00:41:28 End 2024.11.12 @ 01:05:32 Sessions 1 Manual Loads 0 Difficulty Rogue Special Mode None Game No. 304 Rogue 299 Adventurer 5 Explorer 0 Win Type - Total 11 Types 5/0/5/0/0/0/1/0/0 Lore% 79 Gallery% 89 Achievement% 75 Wizard Run 0 Options --------- Layout 2 ASCII 0 Keyboard 0 Movement Mouse Keybinds 0 Fullscreen 2 Font 24/Smallcaps Map View 50x44 Zoom Use 0% Tactical HUD 1 Map Filters NONE Filters NONE Steam 1 RUN: 5c34f2e3-c4e3-4f0b-ae2b-65c6c8fba79c